fUST/lending_fUST_20240717
["ID","MTS","AMOUNT","RATE_DAILY","PERIOD"]
[332412701,1721166658279,-500.0,0.00022465,2]
[332412702,1721166658289,-500.0,0.00022465,2]
[332412703,1721166658299,-500.0,0.00022465,2]
[332412704,1721166658308,-500.0,0.00022465,2]
[332412705,1721166658317,-500.0,0.00022465,2]
[332412706,1721166658327,-491.77680068,0.00022465,2]
[332412707,1721166658344,-500.0,0.00022465,2]
[332412708,1721166658357,-500.0,0.00022465,2]
[332412709,1721166658368,-500.0,0.00022465,2]
[332412710,1721166658379,-500.0,0.00022465,2]
[332412711,1721166658389,-500.0,0.00022465,2]
[332412712,1721166658400,-500.0,0.00022465,2]
[332412713,1721166658412,-500.0,0.00022465,2]
[332412714,1721166658423,-500.0,0.00022465,2]
[332412715,1721166658433,-500.0,0.00022465,2]
[332412716,1721166658443,-500.0,0.00022465,2]
[332412717,1721166658453,-500.0,0.00022465,2]
[332412718,1721166658462,-731.61,0.00022465,2]
[332412719,1721166658472,-500.0,0.00022465,2]
[332412720,1721166658482,-500.0,0.00022465,2]
[332412721,1721166658493,-500.0,0.00022465,2]
[332412722,1721166658504,-500.0,0.00022465,2]
[332412723,1721166658514,-500.0,0.00022465,2]
[332412724,1721166658524,-500.0,0.00022465,2]
[332412725,1721166658534,-500.0,0.00022465,2]
[332412726,1721166658544,-500.0,0.00022465,2]
[332412727,1721166658554,-500.0,0.00022465,2]
[332412728,1721166658564,-500.0,0.00022465,2]
[332412729,1721166658574,-500.0,0.00022465,2]
[332412730,1721166658584,-500.0,0.00022465,2]
[332412731,1721166658594,-500.0,0.00022465,2]
[332412732,1721166658604,-500.0,0.00022465,2]
[332412733,1721166658614,-500.0,0.00022465,2]
[332412734,1721166658623,-500.0,0.00022465,2]
[332412735,1721166658633,-500.0,0.00022465,2]
[332412736,1721166658643,-500.0,0.00022465,2]
[332412737,1721166658653,-500.0,0.00022465,2]
[332412738,1721166658663,-500.0,0.00022465,2]
[332412739,1721166658672,-500.0,0.00022465,2]
[332412740,1721166658682,-500.0,0.00022465,2]
[332412741,1721166658692,-500.0,0.00022465,2]
[332412742,1721166658702,-500.0,0.00022465,2]
[332412743,1721166658711,-500.0,0.00022465,2]
[332412744,1721166658721,-500.0,0.00022465,2]
[332412745,1721166658731,-500.0,0.00022465,2]
[332412746,1721166658741,-500.0,0.00022465,2]
[332412747,1721166658750,-500.0,0.00022465,2]
[332412748,1721166658759,-500.0,0.00022465,2]
[332412749,1721166658770,-500.0,0.00022465,2]
[332412750,1721166658780,-500.0,0.00022465,2]
[332412751,1721166658789,-500.0,0.00022465,2]
[332412752,1721166658800,-573.79,0.00022465,2]
[332412753,1721166658810,-500.0,0.00022465,2]
[332412754,1721166658819,-500.0,0.00022465,2]
[332412755,1721166658829,-500.0,0.00022465,2]
[332412756,1721166658839,-500.0,0.00022465,2]
[332412757,1721166658849,-500.0,0.00022465,2]
[332412758,1721166658859,-500.0,0.00022465,2]
[332412759,1721166658869,-500.0,0.00022465,2]
[332412760,1721166658879,-1939.77,0.00022465,2]
[332412761,1721166658888,-500.0,0.00022465,2]
[332412762,1721166658897,-500.0,0.00022465,2]
[332412763,1721166658907,-500.0,0.00022465,2]
[332412764,1721166658916,-607.4,0.00022465,2]
[332412765,1721166658927,-500.0,0.00022465,2]
[332412766,1721166658936,-500.0,0.00022465,2]
[332412767,1721166658946,-500.0,0.00022465,2]
[332412768,1721166658957,-151.0,0.00022465,2]
[332412769,1721166658967,-577.0173042,0.00022465,2]
[332412770,1721166658977,-945.66,0.00022465,2]
[332412771,1721166658986,-423.53243489,0.00022465,2]
[332412772,1721166658996,-500.0,0.00022465,2]
[332412773,1721166659005,-500.0,0.00022465,2]
[332412774,1721166659015,-500.0,0.00022465,2]
[332412775,1721166659025,-500.0,0.00022465,2]
[332412776,1721166659035,-500.0,0.00022465,2]
[332412777,1721166659044,-509.80753575,0.00022465,2]
[332412778,1721166659054,-500.0,0.00022465,2]
[332412779,1721166659063,-500.0,0.00022465,2]
[332412780,1721166659073,-500.0,0.00022465,2]
[332412781,1721166659082,-500.0,0.00022465,2]
[332412782,1721166659092,-500.0,0.00022465,2]
[332412783,1721166659101,-500.0,0.00022465,2]
[332412784,1721166659111,-500.0,0.00022465,2]
[332412785,1721166659121,-500.0,0.00022465,2]
[332412786,1721166659131,-500.0,0.00022465,2]
[332412787,1721166659140,-500.0,0.00022465,2]
[332412788,1721166659149,-519.09883762,0.00022465,2]
[332412789,1721166659158,-500.0,0.00022465,2]
[332412790,1721166659167,-500.0,0.00022465,2]
[332412791,1721166659178,-500.0,0.00022465,2]
[332412792,1721166659188,-879.13,0.00022465,2]
[332412793,1721166659199,-500.0,0.00022465,2]
[332412794,1721166659209,-500.0,0.00022465,2]
[332412795,1721166659218,-500.0,0.00022465,2]
[332412796,1721166659228,-500.0,0.00022465,2]
[332412797,1721166659237,-678.32,0.00022465,2]
[332412798,1721166659247,-500.0,0.00022465,2]
[332412799,1721166659256,-500.0,0.00022465,2]
[332412800,1721166659265,-1056.72,0.00022465,2]
[332412801,1721166659275,-840.42,0.00022465,2]
[332412802,1721166659285,-500.0,0.00022465,2]
[332412803,1721166659294,-604.37,0.00022465,2]
[332412804,1721166659303,-500.0,0.00022465,2]
[332412805,1721166659312,-509.0,0.00022465,2]
[332412806,1721166659321,-500.0,0.00022465,2]
[332412807,1721166659330,-587.41369929,0.00022465,2]
[332412808,1721166659339,-500.0,0.00022465,2]
[332412809,1721166659349,-1440.87,0.00022465,2]
[332412810,1721166659358,-500.0,0.00022465,2]
[332412811,1721166659367,-500.0,0.00022465,2]
[332412812,1721166659376,-529.34,0.00022465,2]
[332412813,1721166659386,-551.44782475,0.00022465,2]
[332412814,1721166659395,-500.0,0.00022465,2]
[332412815,1721166659404,-1756.65,0.00022465,2]
[332412816,1721166659413,-250.13027115,0.00022465,2]
[332412817,1721166659423,-500.0,0.00022465,2]
[332412818,1721166659432,-500.0,0.00022465,2]
[332412819,1721166659441,-1174.77,0.00022465,2]
[332412820,1721166659451,-500.0,0.00022465,2]
[332412821,1721166659460,-987.64,0.00022465,2]
[332412822,1721166659470,-734.55,0.00022465,2]
[332412823,1721166659478,-500.0,0.00022465,2]
[332412824,1721166659487,-500.0,0.00022465,2]
[332412825,1721166659496,-500.0,0.00022465,2]
[332412826,1721166659505,-500.0,0.00022465,2]
[332412827,1721166659515,-500.0,0.00022465,2]
[332412828,1721166659524,-500.0,0.00022465,2]
[332412829,1721166659534,-2173.38,0.00022465,2]
[332412830,1721166659543,-7847.7,0.00022465,2]
[332412831,1721166659552,-500.0,0.00022465,2]
[332412832,1721166659561,-500.0,0.00022465,2]
[332412833,1721166659571,-500.0,0.00022465,2]
[332412834,1721166659580,-1912.94,0.00022465,2]
[332412835,1721166659589,-500.0,0.00022465,2]
[332412836,1721166659598,-500.0,0.00022465,2]
[332412837,1721166659607,-607.87,0.00022465,2]
[332412838,1721166659616,-200.0,0.00022465,2]
[332412839,1721166659625,-500.0,0.00022465,2]
[332412840,1721166659635,-500.0,0.00022465,2]
[332412841,1721166659644,-500.0,0.00022465,2]
[332412842,1721166659654,-500.0,0.00022465,2]
[332412843,1721166659663,-500.0,0.00022465,2]
[332412844,1721166659672,-500.0,0.00022465,2]
[332412845,1721166659682,-500.0,0.00022465,2]
[332412846,1721166659691,-500.0,0.00022465,2]
[332412847,1721166659700,-500.0,0.00022465,2]
[332412848,1721166659710,-513.27,0.00022465,2]
[332412849,1721166659719,-500.0,0.00022465,2]
[332412850,1721166659728,-500.0,0.00022465,2]
[332412851,1721166659737,-878.66,0.00022465,2]
[332412852,1721166659750,-232.30979838,0.00022465,2]
[332412853,1721166659761,-500.0,0.00022465,2]
[332412854,1721166659771,-500.0,0.00022465,2]
[332412855,1721166659780,-500.0,0.00022465,2]
[332412856,1721166659790,-658.49,0.00022465,2]
[332412857,1721166659800,-500.0,0.00022465,2]
[332412858,1721166659809,-500.0,0.00022465,2]
[332412859,1721166659819,-500.0,0.00022465,2]
[332412860,1721166659829,-500.0,0.00022465,2]
[332412861,1721166659839,-500.0,0.00022465,2]
[332412862,1721166659848,-500.0,0.00022465,2]
[332412863,1721166659858,-500.0,0.00022465,2]
[332412864,1721166659867,-782.13,0.00022465,2]
[332412865,1721166659877,-500.0,0.00022465,2]
[332412866,1721166659887,-500.0,0.00022465,2]
[332412867,1721166659897,-1774.74,0.00022465,2]
[332412868,1721166659906,-500.0,0.00022465,2]
[332412869,1721166659916,-500.0,0.00022465,2]
[332412870,1721166659925,-500.0,0.00022465,2]
[332412871,1721166659935,-359.5591179,0.00022465,2]
[332412872,1721166659945,-528.84,0.00022465,2]
[332412873,1721166659955,-500.0,0.00022465,2]
[332412874,1721166659964,-500.0,0.00022465,2]
[332412875,1721166659974,-500.0,0.00022465,2]
[332412876,1721166659983,-500.0,0.00022465,2]
[332412877,1721166659992,-781.82,0.00022465,2]
[332412878,1721166660001,-500.0,0.00022465,2]
[332412879,1721166660011,-500.0,0.00022465,2]
[332412880,1721166660021,-1207.91,0.00022465,2]
[332412881,1721166660030,-1500.0,0.00022465,2]
[332412882,1721166660040,-500.0,0.00022465,2]
[332412883,1721166660050,-500.0,0.00022465,2]
[332412884,1721166660059,-500.0,0.00022465,2]
[332412885,1721166660069,-500.0,0.00022465,2]
[332412886,1721166660079,-500.0,0.00022465,2]
[332412887,1721166660088,-1185.1,0.00022465,2]
[332412888,1721166660098,-500.0,0.00022465,2]
[332412889,1721166660108,-835.87,0.00022465,2]
[332412890,1721166660117,-525.49278574,0.00022465,2]
[332412891,1721166660126,-1707.95,0.00022465,2]
[332412892,1721166660136,-500.0,0.00022465,2]
[332412893,1721166660146,-761.91,0.00022465,2]
[332412894,1721166660157,-500.0,0.00022465,2]
[332412895,1721166660166,-500.0,0.00022465,2]
[332412896,1721166660175,-500.0,0.00022465,2]
[332412897,1721166660185,-351.69905684,0.00022465,2]
[332412898,1721166660195,-905.03,0.00022465,2]
[332412899,1721166660208,-500.0,0.00022465,2]
[332412900,1721166660219,-9113.73245257,0.00022465,2]
[332412901,1721166660769,-250.0,0.0002196,2]
[332412902,1721166660779,-154.69833824,0.00022378,2]
[332412903,1721166660788,-741.82411176,0.00022465,2]
[332412904,1721166661213,-187.73025568,0.00019579,2]
[332412905,1721166661223,-526.56704613,0.00019579,2]
[332412906,1721166661234,-2226.50493665,0.00022465,2]
[332412907,1721166661246,-1378.66993618,0.00022465,2]
[332412908,1721166661258,-942.77325491,0.00022465,2]
[332412912,1721166848204,980.10024446,0.00014999,2]
[332412913,1721166862333,403.99333324,0.00014999,2]
[332412914,1721166877028,500.24552227,0.00014999,2]
[332412915,1721166879287,413.03103633,0.00014999,2]
[332412916,1721166879321,4754.52971637,0.00014999,2]
[332412917,1721166883855,319.12146127,0.00014999,2]
[332412918,1721166980791,403.5725422,0.00014999,2]
[332412919,1721167003887,5715.60519464,0.00015,2]
[332412920,1721167042780,526.48641248,0.00014999,2]
[332412922,1721167067853,319.98538865,0.00014999,2]
[332412926,1721167082795,287.42129962,0.00015,2]
[332412927,1721167109148,879.09782004,0.00014999,2]
[332412930,1721167225793,470.92318196,0.00014999,2]
[332412931,1721167301418,532.42648906,0.00014999,2]
[332412937,1721167409084,166.637948,0.00015952,2]
[332412940,1721167442160,3000.0,0.00015952,2]
[332412941,1721167495592,1224.2852026,0.00015955,2]
[332412942,1721167512470,400.2453508,0.00015955,2]
[332412943,1721167640825,412.88555985,0.00014999,2]
[332412944,1721167649577,182.81276207,0.00014999,2]
[332412947,1721167687697,885.90879381,0.00014999,2]
[332412949,1721167789424,349.3564339,0.00015566,2]
[332412950,1721167790784,599.708497,0.00015566,2]
[332412951,1721167802936,1287.87828047,0.00015,2]
[332412952,1721167822956,155.59249848,0.00014999,2]
[332412953,1721167833983,155.59249848,0.00014999,2]
[332412996,1721167834636,-200.971568,0.00016138,2]
[332412998,1721167834646,-200.971568,0.00016182,2]
[332413000,1721167834656,-200.971568,0.00016226,2]
[332413002,1721167834667,-9.820296,0.0001627,2]
[332413302,1721167838217,-191.151272,0.0001627,2]
[332413303,1721167838227,-150.7760967,0.00016315,2]
[332413304,1721167838341,-50.1954713,0.00016315,2]
[332413305,1721167838352,-200.971568,0.00016359,2]
[332413306,1721167838363,-200.971568,0.00016403,2]
[332413307,1721167838373,-136.39935942,0.00016447,2]
[332413308,1721167838397,-64.57220858,0.00016447,2]
[332413309,1721167838407,-200.971568,0.00016492,2]
[332413310,1721167838418,-200.971568,0.00016536,2]
[332413311,1721167838429,-200.971568,0.0001658,2]
[332413312,1721167838439,-200.971568,0.00016624,2]
[332413313,1721167838449,-200.971568,0.00016669,2]
[332413314,1721167838458,-200.971568,0.00016713,2]
[332413315,1721167838467,-392.77360034,0.00016752,2]
[332413316,1721167838477,-200.971568,0.00016757,2]
[332413317,1721167838486,-200.971568,0.00016801,2]
[332413318,1721167838495,-24.68164723,0.00016846,2]
[332413319,1721167838507,-176.28992077,0.00016846,2]
[332413320,1721167838521,-300.0,0.00016852,2]
[332413321,1721167838531,-222.12208497,0.00016853,2]
[332413336,1721167840399,-1470.30002229,0.00016853,2]
[332413349,1721167844641,-155.18379875,0.00016255,2]
[332413350,1721167844652,-3898.01446957,0.00016853,2]
[332413351,1721167844671,-9571.004791,0.00016853,2]
[332413368,1721167846175,-458.17298887,0.00016853,2]
[332413369,1721167887529,180.0289481,0.00014999,2]
[332413372,1721167928961,497.72740297,0.00015,2]
[332413373,1721167928985,20774.59174337,0.00015,2]
[332413374,1721167945806,275.36317654,0.00014999,2]
[332413375,1721167978699,155.14626466,0.00014999,2]
[332413376,1721168005524,309.30409356,0.00014999,2]
[332413377,1721168052680,158.42546099,0.00014999,2]
[332413378,1721168065182,1026.985248,0.00015243,2]
[332413379,1721168088960,367.93718675,0.00015,2]
[332413383,1721168179662,157.78880964,0.00014999,2]
[332413389,1721168439812,8512.4600079,0.00015217,2]
[332413390,1721168452940,168.446792,0.00015332,2]
[332413391,1721168453150,168.446792,0.00015411,2]
[332413392,1721168453393,168.446792,0.00015491,2]
[332413393,1721168453630,168.446792,0.00015571,2]
[332413394,1721168453874,168.446792,0.00015651,2]
[332413395,1721168454096,168.446792,0.00015731,2]
[332413396,1721168454320,168.446792,0.00015811,2]
[332413397,1721168454563,168.446792,0.00015891,2]
[332413398,1721168454803,168.446792,0.00015971,2]
[332413399,1721168466855,299.854249,0.00015117,2]
[332413400,1721168528257,24900.0,0.00015208,2]
[332413401,1721168573038,703.7773914,0.00015208,2]
[332413402,1721168573758,3000.0,0.00015208,2]
[332413403,1721168583977,14998.78790937,0.00015117,2]
[332413404,1721168589361,6753.24972208,0.00015117,2]
[332413405,1721168592142,155.28367271,0.00015117,2]
[332413406,1721168601906,287.76568306,0.00015208,2]
[332413408,1721168621264,154.96149003,0.00014999,2]
[332413409,1721168624671,155.94739222,0.00015208,2]
[332413410,1721168625088,494.63981755,0.00015998,2]
[332413411,1721168635184,9623.26820643,0.00014998,2]
[332413413,1721168637123,251.80053729,0.00014999,2]
[332413414,1721168637154,2134.82531921,0.00015,2]
[332413415,1721168645456,2122.17951257,0.00014999,2]
[332413416,1721168645989,155.10335316,0.00014999,2]
[332413417,1721168647289,790.54047591,0.00014999,2]
[332413418,1721168647364,725.50158015,0.00014999,2]
[332413419,1721168647835,402.97170091,0.00014999,2]
[332413420,1721168647864,354.46681452,0.00014999,2]
[332413421,1721168648272,209.31817584,0.00014999,2]
[332413422,1721168653069,159.8423972,0.00014999,2]
[332413423,1721168662133,196.09695636,0.00014999,2]
[332413424,1721168662499,2130.46951269,0.00014999,2]
[332413425,1721168663130,156.43680836,0.00014999,2]
[332413426,1721168668048,154.83424936,0.00014999,2]
[332413427,1721168670673,886.16851084,0.00014999,2]
[332413428,1721168675452,493.21771542,0.00014999,2]
[332413429,1721168678878,10595.39117734,0.00014998,2]
[332413432,1721168680834,4709.48369578,0.00014999,2]
[332413433,1721168684434,201.18725967,0.00014999,2]
[332413434,1721168685363,394.9066286,0.00014999,2]
[332413435,1721168686776,599.77641834,0.00014999,2]
[332413436,1721168688502,154.71377951,0.00014999,2]
[332413439,1721168696122,733.09166965,0.00014999,2]
[332413440,1721168708892,10596.86547565,0.00014998,2]
[332413494,1721168734574,1627.95625239,0.00014999,2]
[332413503,1721168758845,409.40389234,0.00014999,2]
[332413504,1721168760905,152.19,0.00010959,2]
[332413505,1721168763732,6991.8061198,0.00014998,2]
[332413506,1721168767077,2421.71056497,0.00015,2]
[332413507,1721168769251,505.73388561,0.00014999,2]
[332413508,1721168770652,208.99220521,0.00014999,2]
[332413509,1721168771484,16759.46838261,0.00015929,2]
[332413510,1721168771626,760.98,0.00010959,2]
[332413511,1721168772195,9615.23092531,0.00014998,2]
[332413512,1721168773355,16759.4683826,0.00015985,2]
[332413513,1721168774998,467.71996019,0.00015929,2]
[332413514,1721168780812,155.15481871,0.00014999,2]
[332413515,1721168780860,156.3978779,0.00014999,2]
[332413516,1721168781941,309.38124447,0.00014999,2]
[332413517,1721168782980,2122.17951257,0.00014999,2]
[332413518,1721168785269,746.38128458,0.00015,2]
[332413519,1721168787072,1491.29218622,0.00014999,2]
[332413520,1721168790202,155.19209237,0.00014999,2]
[332413521,1721168796176,309.22217732,0.00014999,2]
[332413522,1721168796207,402.43052901,0.00014999,2]
[332413523,1721168796359,728.37367261,0.00014999,2]
[332413524,1721168796392,383.94934095,0.00014999,2]
[332413525,1721168801563,1160.77042757,0.00014999,2]
[332413526,1721168803904,201.56287409,0.00014999,2]
[332413527,1721168804911,11054.24335449,0.00014998,2]
[332413528,1721168807311,209.38449537,0.00014999,2]
[332413529,1721168807826,1436.35994433,0.00014999,2]
[332413530,1721168811741,196.09695636,0.00014999,2]
[332413531,1721168812288,279.32989247,0.00014999,2]
[332413532,1721168813453,200.94415432,0.00014999,2]
[332413533,1721168814066,572.85250999,0.00014999,2]
[332413534,1721168819342,2332.56447961,0.00014999,2]
[332413536,1721168820138,156.43680836,0.00014999,2]
[332413538,1721168825042,155.59249848,0.00014999,2]
[332413540,1721168826530,2239.28549229,0.00014999,2]
[332413542,1721168833264,5061.66969737,0.00015997,2]
[332413544,1721168841457,1385108.19516669,0.00015928,2]
[332413545,1721168841482,1235574.2780098,0.00015928,2]
[332413546,1721168842166,778.26945323,0.00014999,2]
[332413547,1721168843520,309.30688481,0.00014999,2]
[332413550,1721168865843,4711.13030053,0.00014999,2]
[332413552,1721168873574,154.7605691,0.00014999,2]
[332413553,1721168879911,4057.88116547,0.00014999,2]
[332413555,1721168881781,470.38079839,0.00014999,2]
[332413557,1721168897531,441.04727659,0.00014999,2]
[332413558,1721168903676,208.93450175,0.00014999,2]
[332413564,1721168935704,309.18304489,0.00014999,2]
[332413565,1721168939971,1092.35848305,0.00014999,2]
[332413567,1721168948939,868.75313452,0.00014999,2]
[332413568,1721168952759,195.58970304,0.00014999,2]
[332413569,1721168958200,156.43680836,0.00014999,2]
[332413570,1721168968547,1128.12307517,0.00014999,2]
[332413571,1721168975616,160.967438,0.00015193,2]
[332413572,1721168975895,160.967438,0.00015246,2]
[332413573,1721168976117,160.967438,0.00015299,2]
[332413574,1721168976547,160.967438,0.00015351,2]
[332413575,1721168976975,160.967438,0.00015404,2]
[332413576,1721168977343,160.967438,0.00015457,2]
[332413577,1721168977586,160.967438,0.0001551,2]
[332413578,1721168977812,160.967438,0.00015562,2]
[332413579,1721168978056,160.967438,0.00015615,2]
[332413580,1721168978268,160.967438,0.00015668,2]
[332413581,1721168978473,160.967438,0.00015721,2]
[332413582,1721168978687,160.967438,0.00015774,2]
[332413583,1721168979112,160.967438,0.00015826,2]
[332413584,1721168979355,160.967438,0.00015879,2]
[332413585,1721168979575,160.967438,0.00015932,2]
[332413586,1721168979735,-157.57293277,0.00016028,2]
[332413587,1721168979765,-300.0,0.0001604,2]
[332413588,1721168979794,-50.10901826,0.0001604,2]
[332413589,1721168979833,-190.88172899,0.0001604,2]
[332413590,1721168979864,160.967438,0.00015985,2]
[332413591,1721168979901,-59.00925275,0.0001604,2]
[332413592,1721168979933,-448.67269828,0.00016042,2]
[332413593,1721168988551,155.59249848,0.00014999,2]
[332413595,1721168999152,782.06518383,0.00014999,2]
[332413596,1721169004821,-300.0,0.0001604,2]
[332413597,1721169004852,-231.80686365,0.00016042,2]
[332413598,1721169004887,-531.80686365,0.00016042,2]
[332413599,1721169004930,-252.84642533,0.00016042,2]
[332413600,1721169013616,611.011802,0.00015129,2]
[332413623,1721169032358,-4428.96098526,0.0001603,2]
[332413624,1721169032368,-300.0,0.0001604,2]
[332413625,1721169032377,-14423.71212261,0.00016042,2]
[332413669,1721169038387,-870.62340908,0.00016042,2]
[332413671,1721169038397,-287.76568306,0.00016042,2]
[332413673,1721169038406,-16759.4683826,0.00016098,2]
[332413675,1721169038417,-191.242275,0.0001613,2]
[332413677,1721169038428,-500.0,0.00016143,2]
[332413679,1721169038438,-500.0,0.00016143,2]
[332413680,1721169038448,-500.0,0.00016143,2]
[332413682,1721169038458,-500.0,0.00016143,2]
[332413683,1721169038468,-500.0,0.00016143,2]
[332413685,1721169038478,-500.0,0.00016143,2]
[332413686,1721169038487,-500.0,0.00016143,2]
[332413688,1721169038498,-500.0,0.00016143,2]
[332413689,1721169038507,-500.0,0.00016143,2]
[332413690,1721169038517,-500.0,0.00016143,2]
[332413691,1721169038527,-500.0,0.00016143,2]
[332413692,1721169038539,-500.0,0.00016143,2]
[332413694,1721169038549,-500.0,0.00016143,2]
[332413695,1721169038558,-500.0,0.00016143,2]
[332413697,1721169038567,-500.0,0.00016143,2]
[332413698,1721169038577,-500.0,0.00016143,2]
[332413700,1721169038586,-500.0,0.00016143,2]
[332413701,1721169038596,-500.0,0.00016143,2]
[332413703,1721169038606,-500.0,0.00016143,2]
[332413704,1721169038616,-500.0,0.00016143,2]
[332413705,1721169038626,-296.9440475,0.00016143,2]
[332413706,1721169038636,-500.0,0.00016143,2]
[332413707,1721169038646,-500.0,0.00016143,2]
[332413708,1721169038657,-500.0,0.00016143,2]
[332413709,1721169038668,-500.0,0.00016143,2]
[332413710,1721169038679,-500.0,0.00016143,2]
[332413711,1721169038688,-465.43399048,0.00016143,2]
[332413712,1721169038698,-500.0,0.00016143,2]
[332413713,1721169038707,-500.0,0.00016143,2]
[332413714,1721169038717,-500.0,0.00016143,2]
[332413715,1721169038728,-448.90893284,0.00016143,2]
[332413716,1721169038739,-500.0,0.00016143,2]
[332413717,1721169038749,-500.0,0.00016143,2]
[332413718,1721169038759,-500.0,0.00016143,2]
[332413719,1721169038769,-163.1927533,0.00016143,2]
[332413720,1721169038778,-500.0,0.00016143,2]
[332413721,1721169038786,-500.0,0.00016143,2]
[332413722,1721169038795,-500.0,0.00016143,2]
[332413723,1721169038804,-500.0,0.00016143,2]
[332413724,1721169038814,-500.0,0.00016143,2]
[332413725,1721169038824,-500.0,0.00016143,2]
[332413726,1721169038834,-500.0,0.00016143,2]
[332413727,1721169038843,-500.0,0.00016143,2]
[332413728,1721169038852,-500.0,0.00016143,2]
[332413729,1721169038862,-500.0,0.00016143,2]
[332413730,1721169038871,-500.0,0.00016143,2]
[332413731,1721169038880,-500.0,0.00016143,2]
[332413732,1721169038889,-500.0,0.00016143,2]
[332413733,1721169038898,-500.0,0.00016143,2]
[332413734,1721169038907,-500.0,0.00016143,2]
[332413735,1721169038916,-500.0,0.00016143,2]
[332413736,1721169038927,-500.0,0.00016143,2]
[332413738,1721169038936,-500.0,0.00016143,2]
[332413739,1721169038945,-500.0,0.00016143,2]
[332413740,1721169038954,-500.0,0.00016143,2]
[332413741,1721169038964,-500.0,0.00016143,2]
[332413743,1721169038976,-500.0,0.00016143,2]
[332413745,1721169038988,-500.0,0.00016143,2]
[332413746,1721169038997,-500.0,0.00016143,2]
[332413748,1721169039007,-500.0,0.00016143,2]
[332413749,1721169039016,-500.0,0.00016143,2]
[332413751,1721169039025,-500.0,0.00016143,2]
[332413752,1721169039034,-500.0,0.00016143,2]
[332413753,1721169039044,-500.0,0.00016143,2]
[332413754,1721169039054,-500.0,0.00016143,2]
[332413755,1721169039064,-500.0,0.00016143,2]
[332413756,1721169039074,-472.46553998,0.00016143,2]
[332413757,1721169039085,-240.16207272,0.00016143,2]
[332413758,1721169039094,-500.0,0.00016143,2]
[332413759,1721169039105,-500.0,0.00016143,2]
[332413760,1721169039114,-500.0,0.00016143,2]
[332413761,1721169039122,-500.0,0.00016143,2]
[332413762,1721169039132,-500.0,0.00016143,2]
[332413763,1721169039141,-500.0,0.00016143,2]
[332413764,1721169039149,-500.0,0.00016143,2]
[332413765,1721169039158,-500.0,0.00016143,2]
[332413766,1721169039167,-500.0,0.00016143,2]
[332413767,1721169039176,-500.0,0.00016143,2]
[332413768,1721169039185,-500.0,0.00016143,2]
[332413769,1721169039195,-500.0,0.00016143,2]
[332413770,1721169039204,-500.0,0.00016143,2]
[332413771,1721169039217,-500.0,0.00016143,2]
[332413772,1721169039228,-500.0,0.00016143,2]
[332413773,1721169039236,-500.0,0.00016143,2]
[332413774,1721169039245,-500.0,0.00016143,2]
[332413775,1721169039255,-500.0,0.00016143,2]
[332413776,1721169039264,-500.0,0.00016143,2]
[332413777,1721169039276,-614.49746518,0.00016143,2]
[332413778,1721169039286,-500.0,0.00016143,2]
[332413779,1721169039298,-500.0,0.00016143,2]
[332413780,1721169039307,-500.0,0.00016143,2]
[332413781,1721169039317,-500.0,0.00016143,2]